[Event "Titled Tuesday Blitz July 11 Early 2023"]
[White "Thecourseoisildur"]
[Black "Llorente Zaro, Alfonso"]
[BlackFideId "2254131"]
[WhiteElo "2559"]
[BlackElo "2845"]
[Result "1-0"]
[Round "2"]
[TimeControl "180+2"]
[Date "2023.07.11"]
[WhiteClock "0:00:04"]
[BlackClock "0:00:00"]
[Board "34"]

1. e4 {[%clk 0:03:00]}  c5 {[%clk 0:02:48]} 2. Nf3 {[%clk 0:02:58]}  Nc6 {[%clk 0:02:48]} 3. Bb5 {[%clk 0:02:56]}  Na5 {[%clk 0:02:48]} 4. O-O {[%clk 0:02:56]}  a6 {[%clk 0:02:46]} 5. Be2 {[%clk 0:02:55]}  e6 {[%clk 0:02:47]} 6. c3 {[%clk 0:02:52]}  Nf6 {[%clk 0:02:40]} 7. e5 {[%clk 0:02:40]}  Nd5 {[%clk 0:02:40]} 8. d4 {[%clk 0:02:38]}  cxd4 {[%clk 0:02:39]} 9. cxd4 {[%clk 0:02:39]}  b5 {[%clk 0:02:38]} 10. Nc3 {[%clk 0:02:35]}  Bb7 {[%clk 0:02:33]} 11. Bg5 {[%clk 0:02:29]}  Qb6 {[%clk 0:02:32]} 12. a3 {[%clk 0:02:21]}  Rc8 {[%clk 0:02:22]} 13. Rc1 {[%clk 0:02:18]}  Nxc3 {[%clk 0:02:22]} 14. Rxc3 {[%clk 0:02:11]}  Rxc3 {[%clk 0:02:21]} 15. bxc3 {[%clk 0:02:08]}  Bxa3 {[%clk 0:02:22]} 16. Qa1 {[%clk 0:02:07]}  Be7 {[%clk 0:02:19]} 17. Bxe7 {[%clk 0:01:58]}  Kxe7 {[%clk 0:02:20]} 18. Qa3+ {[%clk 0:01:55]}  Ke8 {[%clk 0:01:46]} 19. Rb1 {[%clk 0:01:49]}  Bxf3 {[%clk 0:01:39]} 20. Bxf3 {[%clk 0:01:38]}  Nc4 {[%clk 0:01:38]} 21. Qb4 {[%clk 0:01:37]}  Nd2 {[%clk 0:01:37]} 22. Ra1 {[%clk 0:01:36]}  Nxf3+ {[%clk 0:01:31]} 23. gxf3 {[%clk 0:01:37]}  Kd8 {[%clk 0:01:31]} 24. c4 {[%clk 0:01:21]}  Kc7 {[%clk 0:01:18]} 25. cxb5 {[%clk 0:01:19]}  axb5 {[%clk 0:01:16]} 26. Rc1+ {[%clk 0:01:15]}  Kb7 {[%clk 0:01:17]} 27. Rc5 {[%clk 0:00:50]}  Ka6 {[%clk 0:01:12]} 28. Qa3+ {[%clk 0:00:50]}  Kb7 {[%clk 0:01:13]} 29. Qb4 {[%clk 0:00:50]}  Ka6 {[%clk 0:01:10]} 30. Qa3+ {[%clk 0:00:50]}  Qa5 {[%clk 0:01:04]} 31. Qb2 {[%clk 0:00:37]}  Rb8 {[%clk 0:01:02]} 32. Rc1 {[%clk 0:00:36]}  Kb7 {[%clk 0:00:56]} 33. Rc5 {[%clk 0:00:34]}  Ka6 {[%clk 0:00:47]} 34. Rc1 {[%clk 0:00:33]}  Qb6 {[%clk 0:00:46]} 35. Qa3+ {[%clk 0:00:30]}  Kb7 {[%clk 0:00:45]} 36. Qe7 {[%clk 0:00:30]}  Qxd4 {[%clk 0:00:40]} 37. Rb1 {[%clk 0:00:30]}  Kb6 {[%clk 0:00:33]} 38. Qxf7 {[%clk 0:00:25]}  Rc8 {[%clk 0:00:23]} 39. Qe7 {[%clk 0:00:21]}  h5 {[%clk 0:00:16]} 40. Qa3 {[%clk 0:00:11]}  h4 {[%clk 0:00:15]} 41. Ra1 {[%clk 0:00:07]}  Kc7 {[%clk 0:00:09]} 42. Qa5+ {[%clk 0:00:06]}  Kb7 {[%clk 0:00:03]} 43. Qa6+ {[%clk 0:00:02]}  Kb8 {[%clk 0:00:03]} 44. Qa8+ {[%clk 0:00:02]}  Kc7 {[%clk 0:00:03]} 45. Rc1+ {[%clk 0:00:02]}  Qc4 {[%clk 0:00:04]} 46. Rxc4+ {[%clk 0:00:01]}  bxc4 {[%clk 0:00:05]} 47. Qa5+ {[%clk 0:00:01]}  Kb7 {[%clk 0:00:05]} 48. Qb4+ {[%clk 0:00:02]}  Ka8 {[%clk 0:00:05]} 49. Qa4+ {[%clk 0:00:02]}  Kb8 {[%clk 0:00:04]} 50. Qb5+ {[%clk 0:00:02]}  Ka8 {[%clk 0:00:05]} 51. Qa5+ {[%clk 0:00:03]}  Kb8 {[%clk 0:00:05]} 52. Qc3 {[%clk 0:00:03]}  g5 {[%clk 0:00:04]} 53. Kf1 {[%clk 0:00:04]}  Rc5 {[%clk 0:00:02]} 54. Ke2 {[%clk 0:00:04]}  Kc7 {[%clk 0:00:02]} 55. Ke3 {[%clk 0:00:04]}  Kc6 {[%clk 0:00:03]} 56. Ke4 {[%clk 0:00:03]}  Kb5 {[%clk 0:00:02]} 57. Qb2+ {[%clk 0:00:03]}  Kc6 {[%clk 0:00:02]} 58. Kd4 {[%clk 0:00:03]}  c3 {[%clk 0:00:02]} 59. Qc2 {[%clk 0:00:03]}  Kb5 {[%clk 0:00:03]} 60. Qb3+ {[%clk 0:00:03]}  Kc6 {[%clk 0:00:03]} 61. Qa4+ {[%clk 0:00:03]}  Kb6 {[%clk 0:00:03]} 62. Qb4+ {[%clk 0:00:03]}  Rb5 {[%clk 0:00:03]} 63. Qd6+ {[%clk 0:00:04]}  Kb7 {[%clk 0:00:03]} 64. Kxc3 {[%clk 0:00:05]}  Rd5 {[%clk 0:00:02]} 65. Qb4+ {[%clk 0:00:05]}  Kc6 {[%clk 0:00:03]} 66. Qe4 {[%clk 0:00:05]}  Kc5 {[%clk 0:00:03]} 67. Qc4+ {[%clk 0:00:04]}  Kb6 {[%clk 0:00:03]} 68. Qb4+ {[%clk 0:00:03]}  Kc6 {[%clk 0:00:04]} 69. f4 {[%clk 0:00:03]}  g4 {[%clk 0:00:03]} 70. Qa4+ {[%clk 0:00:03]}  Kb6 {[%clk 0:00:03]} 71. Qb4+ {[%clk 0:00:03]}  Kc6 {[%clk 0:00:03]} 72. Qe4 {[%clk 0:00:03]}  Kc5 {[%clk 0:00:03]} 73. Qg2 {[%clk 0:00:02]}  g3 {[%clk 0:00:03]} 74. fxg3 {[%clk 0:00:02]}  hxg3 {[%clk 0:00:04]} 75. Qxg3 {[%clk 0:00:03]}  Kc6 {[%clk 0:00:03]} 76. h4 {[%clk 0:00:03]}  d6 {[%clk 0:00:01]} 77. exd6 {[%clk 0:00:03]}  Kxd6 {[%clk 0:00:01]} 78. f5+ {[%clk 0:00:03]}  Ke7 {[%clk 0:00:01]} 79. fxe6 {[%clk 0:00:03]}  Kxe6 {[%clk 0:00:02]} 80. Qg6+ {[%clk 0:00:03]}  Ke7 {[%clk 0:00:02]} 81. h5 {[%clk 0:00:03]}  Rd6 {[%clk 0:00:02]} 82. Qg7+ {[%clk 0:00:03]}  Ke6 {[%clk 0:00:03]} 83. Qg6+ {[%clk 0:00:03]}  Ke7 {[%clk 0:00:03]} 84. Qxd6+ {[%clk 0:00:03]}  Kxd6 {[%clk 0:00:00]} 85. h6 {[%clk 0:00:04]} 1-0


[Site "https://www.chess.com"]

[Event "Titled Tuesday Blitz July 11 Early 2023"]
[White "NovoselovRoman"]
[Black "Pakleza, Zbigniew"]
[BlackFideId "1119290"]
[WhiteElo "2556"]
[BlackElo "2830"]
[Result "1/2-1/2"]
[Round "2"]
[TimeControl "180+2"]
[Date "2023.07.11"]
[WhiteClock "0:00:22"]
[BlackClock "0:00:03"]
[Board "37"]

1. e4 {[%clk 0:03:00]}  d6 {[%clk 0:02:55]} 2. d4 {[%clk 0:02:59]}  Nf6 {[%clk 0:02:56]} 3. Nc3 {[%clk 0:02:59]}  c6 {[%clk 0:02:56]} 4. Nf3 {[%clk 0:02:57]}  Bg4 {[%clk 0:02:55]} 5. Be2 {[%clk 0:02:57]}  e6 {[%clk 0:02:55]} 6. Bg5 {[%clk 0:02:55]}  Be7 {[%clk 0:02:55]} 7. Qd3 {[%clk 0:02:50]}  d5 {[%clk 0:02:54]} 8. exd5 {[%clk 0:02:41]}  cxd5 {[%clk 0:02:49]} 9. Ne5 {[%clk 0:02:37]}  Bxe2 {[%clk 0:02:48]} 10. Nxe2 {[%clk 0:02:38]}  O-O {[%clk 0:02:46]} 11. O-O-O {[%clk 0:02:23]}  Nc6 {[%clk 0:02:42]} 12. Bxf6 {[%clk 0:02:22]}  Bxf6 {[%clk 0:02:41]} 13. f4 {[%clk 0:02:22]}  Rc8 {[%clk 0:02:39]} 14. Qb3 {[%clk 0:02:15]}  Na5 {[%clk 0:02:36]} 15. Qf3 {[%clk 0:02:07]}  Bxe5 {[%clk 0:02:22]} 16. dxe5 {[%clk 0:02:01]}  Qb6 {[%clk 0:02:11]} 17. Nd4 {[%clk 0:01:51]}  Rc4 {[%clk 0:02:01]} 18. Nb3 {[%clk 0:01:49]}  Rfc8 {[%clk 0:01:59]} 19. Rd2 {[%clk 0:01:47]}  Ra4 {[%clk 0:01:38]} 20. Kb1 {[%clk 0:01:42]}  Nc4 {[%clk 0:01:26]} 21. Re2 {[%clk 0:01:24]}  Qa6 {[%clk 0:01:13]} 22. Nc1 {[%clk 0:01:13]}  Rb4 {[%clk 0:00:50]} 23. c3 {[%clk 0:01:00]}  Rb6 {[%clk 0:00:28]} 24. f5 {[%clk 0:01:00]}  Qb5 {[%clk 0:00:24]} 25. fxe6 {[%clk 0:00:54]}  Rxe6 {[%clk 0:00:23]} 26. Rf1 {[%clk 0:00:54]}  Rc7 {[%clk 0:00:18]} 27. Qd3 {[%clk 0:00:40]}  h6 {[%clk 0:00:12]} 28. Qf5 {[%clk 0:00:36]}  Rce7 {[%clk 0:00:09]} 29. Rfe1 {[%clk 0:00:30]}  g6 {[%clk 0:00:08]} 30. Qf4 {[%clk 0:00:28]}  Kg7 {[%clk 0:00:07]} 31. Nb3 {[%clk 0:00:28]}  Rb6 {[%clk 0:00:03]} 32. Nd4 {[%clk 0:00:25]}  Qa5 {[%clk 0:00:03]} 33. Qc1 {[%clk 0:00:17]}  Ra6 {[%clk 0:00:03]} 34. b3 {[%clk 0:00:16]}  Na3+ {[%clk 0:00:03]} 35. Ka1 {[%clk 0:00:16]}  Nb5 {[%clk 0:00:04]} 36. Nxb5 {[%clk 0:00:16]}  Qxb5 {[%clk 0:00:05]} 37. Qb2 {[%clk 0:00:16]}  Rae6 {[%clk 0:00:04]} 38. Qd2 {[%clk 0:00:15]}  Qc5 {[%clk 0:00:05]} 39. Qd4 {[%clk 0:00:15]}  Rc7 {[%clk 0:00:04]} 40. Kb2 {[%clk 0:00:15]}  a6 {[%clk 0:00:04]} 41. Qd3 {[%clk 0:00:15]}  Qc6 {[%clk 0:00:04]} 42. Rd1 {[%clk 0:00:15]}  Rd7 {[%clk 0:00:04]} 43. Rc2 {[%clk 0:00:16]}  Rxe5 {[%clk 0:00:04]} 44. Qd4 {[%clk 0:00:16]}  Qf6 {[%clk 0:00:04]} 45. Rf2 {[%clk 0:00:15]}  Rf5 {[%clk 0:00:03]} 46. Rxf5 {[%clk 0:00:16]}  Qxd4 {[%clk 0:00:02]} 47. Rxd4 {[%clk 0:00:16]}  gxf5 {[%clk 0:00:03]} 48. Kc2 {[%clk 0:00:16]}  Kf6 {[%clk 0:00:03]} 49. Kd3 {[%clk 0:00:17]}  Ke5 {[%clk 0:00:04]} 50. Rh4 {[%clk 0:00:17]}  Rd6 {[%clk 0:00:04]} 51. g3 {[%clk 0:00:18]}  b5 {[%clk 0:00:04]} 52. Rh5 {[%clk 0:00:19]}  Rg6 {[%clk 0:00:04]} 53. Rh4 {[%clk 0:00:19]}  Rc6 {[%clk 0:00:03]} 54. Rf4 {[%clk 0:00:20]}  Rg6 {[%clk 0:00:03]} 55. Rh4 {[%clk 0:00:20]}  Rf6 {[%clk 0:00:03]} 56. Rf4 {[%clk 0:00:21]}  Re6 {[%clk 0:00:03]} 57. Rh4 {[%clk 0:00:21]}  Rd6 {[%clk 0:00:03]} 58. Rf4 {[%clk 0:00:22]}  Rg6 {[%clk 0:00:03]} 59. Rh4 {[%clk 0:00:22]} 1/2-1/2


[Site "https://www.chess.com"]

[Event "Titled Tuesday Blitz July 11 Early 2023"]
[White "Kosteniuk, Alexandra"]
[Black "AyMitecK"]
[WhiteFideId "4128125"]
[WhiteElo "2799"]
[BlackElo "2553"]
[Result "1/2-1/2"]
[Round "2"]
[TimeControl "180+2"]
[Date "2023.07.11"]
[WhiteClock "0:00:06"]
[BlackClock "0:00:20"]
[Board "39"]

1. e4 {[%clk 0:03:00]}  e6 {[%clk 0:02:59]} 2. d4 {[%clk 0:03:00]}  d5 {[%clk 0:02:58]} 3. exd5 {[%clk 0:03:01]}  exd5 {[%clk 0:02:58]} 4. Nf3 {[%clk 0:03:01]}  Bd6 {[%clk 0:02:58]} 5. c4 {[%clk 0:02:59]}  Nf6 {[%clk 0:02:58]} 6. c5 {[%clk 0:02:59]}  Be7 {[%clk 0:02:57]} 7. Bd3 {[%clk 0:02:58]}  b6 {[%clk 0:02:57]} 8. Be3 {[%clk 0:02:57]}  O-O {[%clk 0:02:55]} 9. O-O {[%clk 0:02:56]}  Ba6 {[%clk 0:02:51]} 10. Nc3 {[%clk 0:02:46]}  Bxd3 {[%clk 0:02:50]} 11. Qxd3 {[%clk 0:02:46]}  bxc5 {[%clk 0:02:49]} 12. dxc5 {[%clk 0:02:46]}  c6 {[%clk 0:02:50]} 13. b4 {[%clk 0:02:42]}  Nbd7 {[%clk 0:02:48]} 14. Bd4 {[%clk 0:02:39]}  Re8 {[%clk 0:02:45]} 15. Rfe1 {[%clk 0:02:38]}  Qc7 {[%clk 0:02:45]} 16. h3 {[%clk 0:02:20]}  Nf8 {[%clk 0:02:45]} 17. Be5 {[%clk 0:02:19]}  Qb7 {[%clk 0:02:44]} 18. Rab1 {[%clk 0:02:13]}  Ng6 {[%clk 0:02:43]} 19. Bh2 {[%clk 0:02:11]}  Bf8 {[%clk 0:02:42]} 20. a3 {[%clk 0:02:08]}  a5 {[%clk 0:02:39]} 21. Ne5 {[%clk 0:01:55]}  axb4 {[%clk 0:02:33]} 22. axb4 {[%clk 0:01:55]}  Ra3 {[%clk 0:02:26]} 23. Qd4 {[%clk 0:01:45]}  Nd7 {[%clk 0:02:14]} 24. Nxg6 {[%clk 0:01:31]}  Rxe1+ {[%clk 0:02:10]} 25. Rxe1 {[%clk 0:01:32]}  hxg6 {[%clk 0:02:08]} 26. b5 {[%clk 0:01:18]}  Nxc5 {[%clk 0:01:53]} 27. bxc6 {[%clk 0:01:11]}  Qxc6 {[%clk 0:01:52]} 28. Qxd5 {[%clk 0:01:08]}  Qxd5 {[%clk 0:01:42]} 29. Nxd5 {[%clk 0:01:09]}  Rd3 {[%clk 0:01:42]} 30. Ne3 {[%clk 0:01:02]}  Rd2 {[%clk 0:01:38]} 31. Rd1 {[%clk 0:00:58]}  Ra2 {[%clk 0:01:31]} 32. Be5 {[%clk 0:00:40]}  Kh7 {[%clk 0:01:26]} 33. f3 {[%clk 0:00:34]}  Ne6 {[%clk 0:01:24]} 34. Nd5 {[%clk 0:00:31]}  Bc5+ {[%clk 0:01:23]} 35. Kh2 {[%clk 0:00:31]}  Ng5 {[%clk 0:01:18]} 36. Rf1 {[%clk 0:00:23]}  Bf2 {[%clk 0:01:10]} 37. f4 {[%clk 0:00:17]}  Ne4 {[%clk 0:01:01]} 38. Nc3 {[%clk 0:00:17]}  Bg3+ {[%clk 0:00:57]} 39. Kg1 {[%clk 0:00:15]}  Nxc3 {[%clk 0:00:53]} 40. Bxc3 {[%clk 0:00:15]}  Rc2 {[%clk 0:00:54]} 41. Be5 {[%clk 0:00:15]}  f6 {[%clk 0:00:53]} 42. Bd6 {[%clk 0:00:15]}  Rc6 {[%clk 0:00:53]} 43. Bb8 {[%clk 0:00:15]}  Rb6 {[%clk 0:00:53]} 44. Bc7 {[%clk 0:00:15]}  Rb7 {[%clk 0:00:54]} 45. Bd6 {[%clk 0:00:15]}  Rd7 {[%clk 0:00:54]} 46. Rf3 {[%clk 0:00:15]}  Be1 {[%clk 0:00:46]} 47. Bc5 {[%clk 0:00:14]}  Rd5 {[%clk 0:00:45]} 48. Bf2 {[%clk 0:00:14]}  Bd2 {[%clk 0:00:44]} 49. Kh2 {[%clk 0:00:13]}  Bc1 {[%clk 0:00:43]} 50. g3 {[%clk 0:00:13]}  Rd2 {[%clk 0:00:42]} 51. Kg2 {[%clk 0:00:13]}  Bb2 {[%clk 0:00:41]} 52. Kf1 {[%clk 0:00:12]}  Rc2 {[%clk 0:00:42]} 53. Rd3 {[%clk 0:00:12]}  Bc3 {[%clk 0:00:41]} 54. Be3 {[%clk 0:00:08]}  Bb2 {[%clk 0:00:34]} 55. Bf2 {[%clk 0:00:08]}  f5 {[%clk 0:00:33]} 56. Be3 {[%clk 0:00:05]}  Bf6 {[%clk 0:00:33]} 57. h4 {[%clk 0:00:05]}  Kh6 {[%clk 0:00:32]} 58. Bd2 {[%clk 0:00:03]}  Kh5 {[%clk 0:00:32]} 59. Be1 {[%clk 0:00:02]}  Kg4 {[%clk 0:00:32]} 60. Rd7 {[%clk 0:00:03]}  Rh2 {[%clk 0:00:28]} 61. Bf2 {[%clk 0:00:03]}  Kf3 {[%clk 0:00:27]} 62. Rd3+ {[%clk 0:00:03]}  Kg4 {[%clk 0:00:27]} 63. Rd6 {[%clk 0:00:03]}  Be7 {[%clk 0:00:25]} 64. Rxg6+ {[%clk 0:00:02]}  Kf3 {[%clk 0:00:23]} 65. Bg1 {[%clk 0:00:01]}  Rb2 {[%clk 0:00:15]} 66. Re6 {[%clk 0:00:02]}  Bb4 {[%clk 0:00:15]} 67. Re3+ {[%clk 0:00:01]}  Kg4 {[%clk 0:00:16]} 68. Re2 {[%clk 0:00:02]}  Rb1+ {[%clk 0:00:16]} 69. Kg2 {[%clk 0:00:02]}  Rb3 {[%clk 0:00:17]} 70. Bf2 {[%clk 0:00:03]}  Rf3 {[%clk 0:00:17]} 71. Re3 {[%clk 0:00:03]}  Rxf2+ {[%clk 0:00:17]} 72. Kxf2 {[%clk 0:00:03]}  Bc5 {[%clk 0:00:18]} 73. Ke2 {[%clk 0:00:04]}  Bxe3 {[%clk 0:00:18]} 74. Kxe3 {[%clk 0:00:05]}  Kxg3 {[%clk 0:00:19]} 75. h5 {[%clk 0:00:05]}  Kg4 {[%clk 0:00:19]} 76. Kf2 {[%clk 0:00:03]}  Kxh5 {[%clk 0:00:20]} 77. Kg3 {[%clk 0:00:03]}  g6 {[%clk 0:00:20]} 78. Kh3 {[%clk 0:00:03]}  Kh6 {[%clk 0:00:20]} 79. Kh4 {[%clk 0:00:04]}  Kg7 {[%clk 0:00:21]} 80. Kg3 {[%clk 0:00:03]}  Kf6 {[%clk 0:00:21]} 81. Kf3 {[%clk 0:00:04]}  Ke6 {[%clk 0:00:22]} 82. Ke2 {[%clk 0:00:04]}  Kd5 {[%clk 0:00:23]} 83. Kd3 {[%clk 0:00:05]}  Kc5 {[%clk 0:00:23]} 84. Kc3 {[%clk 0:00:05]}  Kb5 {[%clk 0:00:23]} 85. Kd4 {[%clk 0:00:04]}  Kc6 {[%clk 0:00:20]} 86. Ke5 {[%clk 0:00:04]}  Kc5 {[%clk 0:00:21]} 87. Kf6 {[%clk 0:00:04]}  Kd5 {[%clk 0:00:22]} 88. Kxg6 {[%clk 0:00:04]}  Ke6 {[%clk 0:00:17]} 89. Kg5 {[%clk 0:00:04]}  Ke7 {[%clk 0:00:18]} 90. Kxf5 {[%clk 0:00:04]}  Kf7 {[%clk 0:00:18]} 91. Ke5 {[%clk 0:00:04]}  Ke7 {[%clk 0:00:19]} 92. f5 {[%clk 0:00:04]}  Kf7 {[%clk 0:00:19]} 93. f6 {[%clk 0:00:05]}  Kf8 {[%clk 0:00:19]} 94. Ke6 {[%clk 0:00:05]}  Ke8 {[%clk 0:00:20]} 95. f7+ {[%clk 0:00:05]}  Kf8 {[%clk 0:00:20]} 96. Kf6 {[%clk 0:00:06]} 1/2-1/2


[Site "https://www.chess.com"]

[Event "Titled Tuesday Blitz July 11 Early 2023"]
[White "Guliev, Logman"]
[Black "Svane, Frederik"]
[WhiteFideId "13400061"]
[BlackFideId "12923044"]
[WhiteElo "2553"]
[BlackElo "2798"]
[Result "0-1"]
[Round "2"]
[TimeControl "180+2"]
[Date "2023.07.11"]
[WhiteClock "0:00:00"]
[BlackClock "0:00:06"]
[Board "40"]

1. e4 {[%clk 0:03:00]}  e6 {[%clk 0:02:57]} 2. d4 {[%clk 0:03:00]}  d5 {[%clk 0:02:58]} 3. Nd2 {[%clk 0:03:00]}  Nf6 {[%clk 0:02:58]} 4. e5 {[%clk 0:03:00]}  Nfd7 {[%clk 0:02:59]} 5. Bd3 {[%clk 0:03:00]}  c5 {[%clk 0:02:59]} 6. c3 {[%clk 0:03:01]}  Nc6 {[%clk 0:03:00]} 7. Ne2 {[%clk 0:03:00]}  f6 {[%clk 0:02:56]} 8. exf6 {[%clk 0:02:59]}  Qxf6 {[%clk 0:02:57]} 9. Nf3 {[%clk 0:02:56]}  Bd6 {[%clk 0:02:58]} 10. O-O {[%clk 0:02:56]}  O-O {[%clk 0:02:58]} 11. Ng3 {[%clk 0:02:55]}  Kh8 {[%clk 0:02:43]} 12. Bg5 {[%clk 0:02:39]}  Qf7 {[%clk 0:02:42]} 13. Be3 {[%clk 0:02:40]}  Bf4 {[%clk 0:02:11]} 14. Qc2 {[%clk 0:02:19]}  e5 {[%clk 0:02:08]} 15. dxe5 {[%clk 0:02:16]}  Ndxe5 {[%clk 0:02:09]} 16. Nxe5 {[%clk 0:02:13]}  Nxe5 {[%clk 0:02:08]} 17. Bxh7 {[%clk 0:02:06]}  Bxe3 {[%clk 0:01:16]} 18. fxe3 {[%clk 0:02:03]}  Qe8 {[%clk 0:01:16]} 19. Rxf8+ {[%clk 0:01:57]}  Qxf8 {[%clk 0:01:17]} 20. Rf1 {[%clk 0:01:56]}  Qe8 {[%clk 0:01:18]} 21. Bf5 {[%clk 0:01:51]}  Be6 {[%clk 0:01:15]} 22. e4 {[%clk 0:01:29]}  d4 {[%clk 0:01:07]} 23. cxd4 {[%clk 0:01:28]}  cxd4 {[%clk 0:01:08]} 24. Qc7 {[%clk 0:01:22]}  Bxa2 {[%clk 0:01:00]} 25. Nh5 {[%clk 0:01:05]}  Bf7 {[%clk 0:00:49]} 26. Nf4 {[%clk 0:00:39]}  Rd8 {[%clk 0:00:29]} 27. Be6 {[%clk 0:00:33]}  d3 {[%clk 0:00:03]} 28. Qxe5 {[%clk 0:00:28]}  d2 {[%clk 0:00:03]} 29. Rd1 {[%clk 0:00:13]}  Qe7 {[%clk 0:00:01]} 30. Qf5 {[%clk 0:00:12]}  Bxe6 {[%clk 0:00:02]} 31. Nxe6 {[%clk 0:00:11]}  Re8 {[%clk 0:00:01]} 32. Qh5+ {[%clk 0:00:11]}  Kg8 {[%clk 0:00:01]} 33. Nd4 {[%clk 0:00:10]}  Qxe4 {[%clk 0:00:01]} 34. Nf3 {[%clk 0:00:08]}  Qe3+ {[%clk 0:00:02]} 35. Kf1 {[%clk 0:00:08]}  Qe2+ {[%clk 0:00:02]} 36. Kg1 {[%clk 0:00:09]}  Qxd1+ {[%clk 0:00:03]} 37. Kf2 {[%clk 0:00:08]}  Qe1+ {[%clk 0:00:04]} 38. Nxe1 {[%clk 0:00:08]}  dxe1=Q+ {[%clk 0:00:05]} 39. Kf3 {[%clk 0:00:08]}  Qe2+ {[%clk 0:00:05]} 40. Kg3 {[%clk 0:00:00]}  Qxh5 {[%clk 0:00:06]} 0-1


[Site "https://www.chess.com"]

[Event "Titled Tuesday Blitz July 11 Early 2023"]
[White "Zemlyanskii, Ivan"]
[Black "Ambartsumova, Karina"]
[WhiteFideId "24249971"]
[BlackFideId "4166299"]
[WhiteElo "2797"]
[BlackElo "2553"]
[Result "0-1"]
[Round "2"]
[TimeControl "180+2"]
[Date "2023.07.11"]
[WhiteClock "0:00:01"]
[BlackClock "0:00:04"]
[Board "41"]

1. d4 {[%clk 0:03:00]}  d6 {[%clk 0:02:58]} 2. Nf3 {[%clk 0:02:56]}  g6 {[%clk 0:02:58]} 3. c4 {[%clk 0:02:33]}  Bg7 {[%clk 0:02:58]} 4. Nc3 {[%clk 0:02:34]}  e5 {[%clk 0:02:58]} 5. e4 {[%clk 0:02:33]}  Bg4 {[%clk 0:02:55]} 6. dxe5 {[%clk 0:02:32]}  dxe5 {[%clk 0:02:48]} 7. Qxd8+ {[%clk 0:02:31]}  Kxd8 {[%clk 0:02:49]} 8. Bg5+ {[%clk 0:02:23]}  Ke8 {[%clk 0:02:33]} 9. Nd5 {[%clk 0:02:11]}  Na6 {[%clk 0:02:26]} 10. c5 {[%clk 0:02:11]}  Kd7 {[%clk 0:01:23]} 11. Bxa6 {[%clk 0:01:51]}  bxa6 {[%clk 0:01:21]} 12. c6+ {[%clk 0:01:52]}  Kxc6 {[%clk 0:01:07]} 13. Rc1+ {[%clk 0:01:52]}  Kd6 {[%clk 0:01:04]} 14. Rxc7 {[%clk 0:01:52]}  Be6 {[%clk 0:00:55]} 15. Rb7 {[%clk 0:01:31]}  h6 {[%clk 0:00:46]} 16. Be3 {[%clk 0:01:17]}  Bxd5 {[%clk 0:00:41]} 17. exd5 {[%clk 0:01:18]}  Ne7 {[%clk 0:00:42]} 18. b4 {[%clk 0:00:55]}  Nxd5 {[%clk 0:00:34]} 19. Rxf7 {[%clk 0:00:55]}  Rhg8 {[%clk 0:00:19]} 20. a3 {[%clk 0:00:44]}  Ke6 {[%clk 0:00:19]} 21. Rb7 {[%clk 0:00:42]}  Nxe3 {[%clk 0:00:13]} 22. fxe3 {[%clk 0:00:42]}  e4 {[%clk 0:00:13]} 23. Nd2 {[%clk 0:00:34]}  Bc3 {[%clk 0:00:13]} 24. Ke2 {[%clk 0:00:33]}  Bxd2 {[%clk 0:00:14]} 25. Kxd2 {[%clk 0:00:34]}  Rgf8 {[%clk 0:00:12]} 26. Rc1 {[%clk 0:00:24]}  Rf2+ {[%clk 0:00:12]} 27. Ke1 {[%clk 0:00:24]}  Rxg2 {[%clk 0:00:12]} 28. Rc6+ {[%clk 0:00:24]}  Kd5 {[%clk 0:00:09]} 29. Rcc7 {[%clk 0:00:16]}  Rxh2 {[%clk 0:00:05]} 30. Rd7+ {[%clk 0:00:12]}  Kc4 {[%clk 0:00:06]} 31. Rxa7 {[%clk 0:00:07]}  Rf8 {[%clk 0:00:05]} 32. Rd4+ {[%clk 0:00:06]}  Kb3 {[%clk 0:00:05]} 33. Rxa6 {[%clk 0:00:05]}  Rff2 {[%clk 0:00:05]} 34. Rxg6 {[%clk 0:00:03]}  Ra2 {[%clk 0:00:04]} 35. Rxe4 {[%clk 0:00:01]}  Ra1# {[%clk 0:00:04]} 0-1


[Site "https://www.chess.com"]

[Event "Titled Tuesday Blitz July 11 Early 2023"]
[White "Kozak, Antoni"]
[Black "Przybylski, Wojciech"]
[WhiteFideId "21832030"]
[BlackFideId "1117599"]
[WhiteElo "2791"]
[BlackElo "2551"]
[Result "1-0"]
[Round "2"]
[TimeControl "180+2"]
[Date "2023.07.11"]
[WhiteClock "0:02:15"]
[BlackClock "0:01:25"]
[Board "43"]

1. Nf3 {[%clk 0:03:00]}  Nf6 {[%clk 0:02:59]} 2. c4 {[%clk 0:03:00]}  c5 {[%clk 0:02:57]} 3. g3 {[%clk 0:03:01]}  g6 {[%clk 0:02:57]} 4. Bg2 {[%clk 0:03:01]}  Bg7 {[%clk 0:02:57]} 5. O-O {[%clk 0:03:02]}  O-O {[%clk 0:02:57]} 6. Nc3 {[%clk 0:03:00]}  Nc6 {[%clk 0:02:57]} 7. d4 {[%clk 0:03:01]}  cxd4 {[%clk 0:02:57]} 8. Nxd4 {[%clk 0:03:02]}  a6 {[%clk 0:02:57]} 9. h3 {[%clk 0:02:52]}  d6 {[%clk 0:02:55]} 10. Be3 {[%clk 0:02:52]}  Bd7 {[%clk 0:02:55]} 11. Rc1 {[%clk 0:02:51]}  Rc8 {[%clk 0:02:54]} 12. Qd2 {[%clk 0:02:44]}  Re8 {[%clk 0:02:53]} 13. b3 {[%clk 0:02:44]}  Rc7 {[%clk 0:02:47]} 14. Nf3 {[%clk 0:02:42]}  Bc8 {[%clk 0:02:43]} 15. Bb6 {[%clk 0:02:41]}  Qd7 {[%clk 0:02:43]} 16. Nd5 {[%clk 0:02:32]}  e6 {[%clk 0:01:40]} 17. Nxc7 {[%clk 0:02:29]}  Re7 {[%clk 0:01:40]} 18. Na8 {[%clk 0:02:22]}  Ne4 {[%clk 0:01:35]} 19. Qd3 {[%clk 0:02:20]}  f5 {[%clk 0:01:35]} 20. Be3 {[%clk 0:02:20]}  b5 {[%clk 0:01:33]} 21. cxb5 {[%clk 0:02:16]}  axb5 {[%clk 0:01:31]} 22. Nb6 {[%clk 0:02:16]}  Qb7 {[%clk 0:01:25]} 23. Nxc8 {[%clk 0:02:15]} 1-0


[Site "https://www.chess.com"]